[Event "EWIRCC 2019"]
[Site "Monte-Carlo"]
[Date "2019.11.30"]
[Round "3.18"]
[White "Bodnaruk, Anastasia"]
[Black "Azimova, Karina"]
[Result "1-0"]
[ECO "C41"]
[WhiteElo "2412"]
[BlackElo "2081"]
[Annotator "NA"]
[PlyCount "81"]
[EventDate "2019.11.28"]
[EventType "swiss"]
[EventCountry "MNC"]
[SourceTitle "playchess.com"]
[Source "ChessBase"]
[SourceQuality "1"]
[TimeControl "5400+30"]

1. e4 {[%emt 1:15:11]} e5 {[%emt 1:15:11]} 2. Nf3 {[%emt 0:00:23]} d6 {[%emt 0:00:21]} 3. d4 {[%emt 0:00:25]} exd4 {[%emt 0:00:22]} 4. Nxd4 {[%emt 0:00:22]} Nf6 {[%emt 0:00:21]} 5. Nc3 {[%emt 0:00:21]} Be7 {[%emt 0:00:21]} 6. g3 {[%emt 0:00:35]} O-O {[%emt 0:00:24]} 7. Bg2 {[%emt 0:00:22]} c6 {[%emt 0:00:34]} 8. O-O {[%emt 0:00:30]} Re8 {[%emt 0:00:23]} 9. Bf4 {[%emt 0:01:52]} Bf8 {[%emt 0:00:39]} 10. Qd2 {[%emt 0:00:29]} Nbd7 {[%emt 0:00:51]} 11. h3 {[%emt 0:02:18]} Ne5 {[%emt 0:00:25]} 12. b3 {[%emt 0:00:32]} Bd7 {[%emt 0:01:16]} 13. g4 {[%emt 0:01:50]} Qc7 {[%emt 0:03:21]} 14. Bg3 {[%emt 0:01:04]} c5 {[%emt 0:02:28]} 15. Nde2 {[%emt 0:01:58]} Bc6 {[%emt 0:00:34]} 16. Nf4 {[%emt 0:01:17]} Ng6 {[%emt 0:02:56]} 17. Nfd5 {[%emt 0:01:37]} Nxd5 {[%emt 0:01:07]} 18. Nxd5 {[%emt 0:01:33]} Qd8 {[%emt 0:00:21]} 19. f4 {[%emt 0:01:02]} Ne7 {[%emt 0:00:46]} 20. c4 {[%emt 0:00:27]} Nxd5 {[%emt 0:01:08]} 21. cxd5 {[%emt 0:00:37]} Bb5 {[%emt 0:00:51]} 22. Rfe1 {[%emt 0:00:23]} g6 {[%emt 0:00:53]} 23. e5 {[%emt 0:00:59]} Bg7 {[%emt 0:00:28]} 24. Rac1 {[%emt 0:00:48]} Rc8 {[%emt 0:02:12]} 25. Kh2 {[%emt 0:00:56]} Bf8 {[%emt 0:00:53]} 26. e6 {[%emt 0:01:01]} fxe6 {[%emt 0:00:34]} 27. dxe6 {[%emt 0:00:23]} Bc6 {[%emt 0:00:50]} 28. Bd5 {[%emt 0:00:27]} Kh8 {[%emt 0:00:51]} 29. f5 {[%emt 0:03:04]} Qf6 {[%emt 0:00:30]} 30. Qd3 {[%emt 0:00:45]} Rcd8 {[%emt 0:01:14]} 31. Rc2 {[%emt 0:00:36]} Bg7 {[%emt 0:01:04]} 32. Rd2 {[%emt 0:00:56]} Qc3 {[%emt 0:00:51]} 33. Qe2 {[%emt 0:00:46]} Be5 {[%emt 0:00:25]} 34. Bxe5+ {[%emt 0:00:43]} dxe5 {[%emt 0:00:21]} 35. Qxe5+ {[%emt 0:00:24]} Qxe5+ {[%emt 0:00:22]} 36. Rxe5 {[%emt 0:00:21]} gxf5 {[%emt 0:00:28]} 37. gxf5 {[%emt 0:00:22]} Rd6 {[%emt 0:00:23]} 38. Kg3 {[%emt 0:00:38]} Kg7 {[%emt 0:00:21]} 39. Bxc6 {[%emt 0:00:39]} Rxc6 {[%emt 0:00:28]} 40. Rd7+ {[%emt 0:00:25]} Kf6 {[%emt 0:00:21]} 41. Kf4 {[%emt 0:00:23]} 1-0

[Event "EWIRCC 2019"]
[Site "Monte-Carlo"]
[Date "2019.11.30"]
[Round "3.19"]
[White "Salimova, Nurgyul"]
[Black "Arakhamia-Grant, Ketevan"]
[Result "0-1"]
[ECO "B32"]
[WhiteElo "2370"]
[BlackElo "2376"]
[Annotator "NA"]
[PlyCount "108"]
[EventDate "2019.11.28"]
[EventType "swiss"]
[EventCountry "MNC"]
[SourceTitle "playchess.com"]
[Source "ChessBase"]
[SourceQuality "1"]
[TimeControl "5400+30"]

1. e4 {[%emt 1:15:13]} c5 {[%emt 1:15:11]} 2. Nf3 {[%emt 0:00:21]} Nc6 {[%emt 0:00:21]} 3. d4 {[%emt 0:00:21]} cxd4 {[%emt 0:00:22]} 4. Nxd4 {[%emt 0:00:21]} e5 {[%emt 0:00:23]} 5. Nb5 {[%emt 0:00:41]} d6 {[%emt 0:00:22]} 6. N1c3 {[%emt 0:00:38]} a6 {[%emt 0:00:21]} 7. Na3 {[%emt 0:00:21]} Be7 {[%emt 0:00:24]} 8. Nc4 {[%emt 0:01:19]} b5 {[%emt 0:00:31]} 9. Ne3 {[%emt 0:00:23]} Nf6 {[%emt 0:00:21]} 10. g3 {[%emt 0:00:55]} O-O {[%emt 0:00:39]} 11. Bg2 {[%emt 0:00:21]} Be6 {[%emt 0:00:24]} 12. O-O {[%emt 0:00:49]} Rc8 {[%emt 0:00:56]} 13. Ncd5 {[%emt 0:01:49]} Bxd5 {[%emt 0:03:41]} 14. exd5 {[%emt 0:00:37]} Nb8 {[%emt 0:00:21]} 15. a4 {[%emt 0:01:09]} b4 {[%emt 0:01:00]} 16. a5 {[%emt 0:00:35]} Rc5 {[%emt 0:04:38]} 17. Bd2 {[%emt 0:00:22]} Rxa5 {[%emt 0:00:21]} 18. Bxb4 {[%emt 0:00:21]} Rb5 {[%emt 0:00:21]} 19. Bc3 {[%emt 0:00:22]} Qc8 {[%emt 0:02:20]} 20. Re1 {[%emt 0:00:41]} Ne8 {[%emt 0:04:11]} 21. Bf1 {[%emt 0:04:02]} Rb6 {[%emt 0:00:36]} 22. Nc4 {[%emt 0:01:42]} Rb7 {[%emt 0:00:21]} 23. b3 {[%emt 0:01:03]} f5 {[%emt 0:00:34]} 24. Bb2 {[%emt 0:01:01]} Nf6 {[%emt 0:01:17]} 25. Bg2 {[%emt 0:02:21]} Rb5 {[%emt 0:00:36]} 26. Ra5 {[%emt 0:01:21]} Nbd7 {[%emt 0:00:49]} 27. Qa1 {[%emt 0:01:00]} Nc5 {[%emt 0:00:58]} 28. Rd1 {[%emt 0:00:31]} Qc7 {[%emt 0:00:45]} 29. Bf1 {[%emt 0:00:45]} Bd8 {[%emt 0:00:52]} 30. Rxb5 {[%emt 0:00:32]} axb5 {[%emt 0:00:21]} 31. Na3 {[%emt 0:00:59]} b4 {[%emt 0:00:21]} 32. Nb5 {[%emt 0:00:25]} Qb6 {[%emt 0:00:26]} 33. Bc1 {[%emt 0:00:55]} Ng4 {[%emt 0:00:42]} 34. Re1 {[%emt 0:01:26]} Nxb3 {[%emt 0:00:41]} 35. Qa7 {[%emt 0:00:39]} Qxa7 {[%emt 0:00:26]} 36. Nxa7 {[%emt 0:00:21]} Nxc1 {[%emt 0:00:23]} 37. Rxc1 {[%emt 0:00:21]} Bb6 {[%emt 0:00:21]} 38. Nc6 {[%emt 0:00:22]} Bxf2+ {[%emt 0:00:40]} 39. Kh1 {[%emt 0:00:30]} Bc5 {[%emt 0:00:25]} 40. Ra1 {[%emt 0:00:54]} g6 {[%emt 0:00:41]} 41. Ra4 {[%emt 0:00:35]} Ne3 {[%emt 0:00:24]} 42. Bb5 {[%emt 0:00:27]} Nxc2 {[%emt 0:00:26]} 43. Bd3 {[%emt 0:00:25]} b3 {[%emt 0:01:03]} 44. Bxc2 {[%emt 0:00:26]} bxc2 {[%emt 0:00:21]} 45. Rc4 {[%emt 0:00:21]} Ra8 {[%emt 0:00:33]} 46. Rxc2 {[%emt 0:00:23]} e4 {[%emt 0:00:33]} 47. Kg2 {[%emt 0:00:32]} Ra1 {[%emt 0:00:22]} 48. Rb2 {[%emt 0:00:26]} Kf7 {[%emt 0:00:41]} 49. Nd8+ {[%emt 0:00:30]} Kf6 {[%emt 0:00:26]} 50. Nc6 {[%emt 0:00:36]} Rg1+ {[%emt 0:00:23]} 51. Kh3 {[%emt 0:00:22]} e3 {[%emt 0:00:31]} 52. Rc2 {[%emt 0:00:42]} g5 {[%emt 0:00:22]} 53. Re2 {[%emt 0:00:25]} f4 {[%emt 0:00:24]} 54. gxf4 {[%emt 0:00:27]} gxf4 {[%emt 0:00:21]} 0-1

[Event "EWIRCC 2019"]
[Site "Monte-Carlo"]
[Date "2019.11.30"]
[Round "3.20"]
[White "Osmak, Iulija"]
[Black "Limanovska, Elizabete"]
[Result "1-0"]
[ECO "A45"]
[WhiteElo "2401"]
[BlackElo "2178"]
[Annotator "NA"]
[PlyCount "73"]
[EventDate "2019.11.28"]
[EventType "swiss"]
[EventCountry "MNC"]
[SourceTitle "playchess.com"]
[Source "ChessBase"]
[SourceQuality "1"]
[TimeControl "5400+30"]

1. d4 {[%emt 1:15:12]} Nf6 {[%emt 1:15:11]} 2. Bg5 {[%emt 0:00:36]} Ne4 {[%emt 0:00:53]} 3. Bf4 {[%emt 0:00:22]} d5 {[%emt 0:00:42]} 4. e3 {[%emt 0:00:25]} Bf5 {[%emt 0:02:52]} 5. f3 {[%emt 0:01:01]} Nd6 {[%emt 0:02:08]} 6. Nc3 {[%emt 0:00:48]} e6 {[%emt 0:00:37]} 7. Nge2 {[%emt 0:01:04]} g5 {[%emt 0:01:09]} 8. Bg3 {[%emt 0:01:23]} h5 {[%emt 0:00:39]} 9. h4 {[%emt 0:01:16]} Bh6 {[%emt 0:01:55]} 10. hxg5 {[%emt 0:01:06]} Bxg5 {[%emt 0:00:21]} 11. Bf4 {[%emt 0:00:55]} h4 {[%emt 0:01:07]} 12. b3 {[%emt 0:01:52]} Nc6 {[%emt 0:01:18]} 13. Qd2 {[%emt 0:00:59]} Bf6 {[%emt 0:01:39]} 14. O-O-O {[%emt 0:01:14]} Qd7 {[%emt 0:00:49]} 15. Kb1 {[%emt 0:02:03]} O-O-O {[%emt 0:00:53]} 16. Nc1 {[%emt 0:00:21]} Bg6 {[%emt 0:01:09]} 17. Nd3 {[%emt 0:00:35]} Qe7 {[%emt 0:01:54]} 18. Ne5 {[%emt 0:01:01]} Bxe5 {[%emt 0:00:34]} 19. dxe5 {[%emt 0:00:40]} Nf5 {[%emt 0:00:44]} 20. Ne2 {[%emt 0:00:50]} f6 {[%emt 0:00:50]} 21. exf6 {[%emt 0:00:32]} Qxf6 {[%emt 0:00:40]} 22. Nd4 {[%emt 0:01:52]} Nce7 {[%emt 0:01:17]} 23. Nb5 {[%emt 0:02:38]} e5 {[%emt 0:00:21]} 24. Qa5 {[%emt 0:00:39]} Qb6 {[%emt 0:01:00]} 25. Qxb6 {[%emt 0:01:03]} axb6 {[%emt 0:00:20]} 26. Bxe5 {[%emt 0:00:22]} Nxe3 {[%emt 0:00:22]} 27. Bxh8 {[%emt 0:00:35]} Bxc2+ {[%emt 0:00:26]} 28. Kc1 {[%emt 0:00:25]} Bxd1 {[%emt 0:00:36]} 29. Bd4 {[%emt 0:00:36]} N7f5 {[%emt 0:00:23]} 30. Bxe3 {[%emt 0:01:12]} Nxe3 {[%emt 0:00:22]} 31. Bd3 {[%emt 0:00:39]} c5 {[%emt 0:00:47]} 32. Nc3 {[%emt 0:00:43]} c4 {[%emt 0:00:28]} 33. Nxd1 {[%emt 0:00:21]} Nxd1 {[%emt 0:00:22]} 34. Bf5+ {[%emt 0:00:21]} Kc7 {[%emt 0:00:23]} 35. Kxd1 {[%emt 0:00:26]} c3 {[%emt 0:00:26]} 36. Kc2 {[%emt 0:00:23]} d4 {[%emt 0:00:22]} 37. Rxh4 {[%emt 0:00:23]} 1-0